Cogmind - Beta 16 @@@ ROGUE MODE // 2025.11.17 @ 20:01:49 Player: Pixelizer Result: Core destroyed Performance ------------- Evolutions (0) 0 Regions Visited (2) 400 Robots Destroyed (6) 30 Value Destroyed (202) 202 Prototype IDs (0) 0 Alien Tech Used (0) 0 Bonus (0) 0 TOTAL SCORE: 632 Bonus ------- None Cogmind --------- Core Integrity 0/250 Matter 300/300 Energy 140/140 System Corruption 5% Temperature Cool (0) Movement Rolling (100) Location -10/Mines Parts ------- > --- POWER (1) -------- Light Deuterium Engine > --- PROPULSION (2) --- Compact Wheel Compact Wheel > --- UTILITY (2) ------ Improved Targeting Computer Power Shielding > --- WEAPON (2) ------- Assault Rifle Rocket Launcher > --- INVENTORY (5) ---- Ion Engine High-capacity Battery (250) Particle Gun Particle Gun Peak State ------------ > --- POWER ------------ Light Deuterium Engine > --- PROPULSION ------- Compact Wheel Compact Wheel > --- UTILITY ---------- Improved Targeting Computer Power Shielding > --- WEAPON ----------- Assault Rifle Rocket Launcher > --- INVENTORY -------- Ion Engine High-capacity Battery Particle Gun Particle Gun [Rating: 11] Favorites ----------- Power Ion Engine Engine Ion Engine Propulsion Aluminum Leg Leg Aluminum Leg Wheel Compact Wheel Utility Power Shielding Storage High-capacity Battery Processor Improved Targeting Computer Protection Power Shielding Weapon Particle Gun Energy Gun Particle Gun Ballistic Gun Assault Rifle Launcher Rocket Launcher Build | -11 -10 -10 ------- Run | Yrd Mat Min Slots Evolved . | . . . Power . | . . . Propulsion . | . . . Utility . | . . . Weapon . | . . . Parts Attached 20 | 5 10 5 Power 4 | 1 2 1 Engine 4 | 1 2 1 Core . | . . . Reactor . | . . . Propulsion 4 | 2 . 2 Treads . | . . . Leg 2 | 2 . . Wheel 2 | . . 2 Hover . | . . . Flight . | . . . Utility 5 | . 4 1 Device . | . . . Storage 2 | . 2 . Processor 2 | . 1 1 Hackware . | . . . Protection 1 | . 1 . Artifact . | . . . Weapon 7 | 2 4 1 Energy Gun 5 | 1 4 . Energy Cannon . | . . . Ballistic Gun 1 | 1 . . Ballistic Cannon . | . . . Launcher 1 | . . 1 Special Weapon . | . . . Impact Weapon . | . . . Slashing Weapon . | . . . Piercing Weapon . | . . . Special Melee Weapon . | . . . Unidentified Prototypes . | . . . Parts Lost 3 | . 1 2 Power . | . . . Propulsion 2 | . . 2 Utility . | . . . Weapon 1 | . 1 . Highest Loss Streak 2 | . 1 2 To Critical Strikes . | . . . Average Backups 1 | . 1 3 Power . | . 1 1 Propulsion . | . . . Utility . | . . 1 Weapon . | . . 1 Tool/Special . | . . . Unused Backups . | . . . Power . | . . . Propulsion . | . . . Utility . | . . . Weapon . | . . . Tool/Special . | . . . Average Slot Usage (%) 90 | . 88 93 Engine 14 | . 14 14 Leg 25 | . 28 20 Storage 6 | . 8 3 Processor 5 | . 2 10 Protection 10 | . 8 14 Energy Gun 16 | . 15 18 Ballistic Gun 8 | . 11 2 Launcher 2 | . . 7 Peak Build Rating 11 | 5 9 11 Average Rating 7 | 4 6 9 On Entrance 4 | . 5 9 Avg Prop Armor Cover (%) . | . . . Naked Turns . | . . . Heaviest Build 16 | 7 16 16 Greatest Support 32 | 20 20 32 Greatest Overweight (x) 3 | . . 3 Average Overweight (x) . | . . . Largest Inventory Capacity 5 | 5 5 5 Average Capacity 5 | 5 5 5 Most Carried 5 | 1 3 5 Average Carried 2 | . 1 3 Final Capacity 5 | 5 5 5 Final Carried 4 | 1 3 4 Class Distribution -------------------- 100% | Mutant Dominant Class ---------------- Mutant | -10/Materials Mutant | -10/Mines Resources | -11 -10 -10 ----------- Run | Yrd Mat Min Matter Collected 473 | 191 99 183 Remotely . | . . . Salvage Created 230 | . 224 6 Parts 10 | . 10 . Haulers Intercepted . | . . . Recyclers Shooed . | . . . Parts Field Recycled . | . . . Retrieved Matter . | . . . Parts Self-Destructed . | . . . Prevented . | . . . Parts Restored . | . . . Kills | -11 -10 -10 ------- Run | Yrd Mat Min Combat Hostiles Destroyed 8 | . 6 2 Guns 8 | . 6 2 Classes Destroyed 3 | . 2 1 Swarmer 2 | . 2 . Grunt 4 | . 4 . Assembled 2 | . . 2 Best Kill Streak 2 | . 2 1 Combat Bots Only 2 | . 2 1 Max Kills in Single Turn 1 | . 1 1 Gunslinging . | . . . Exploded . | . . . Melee . | . . . Uniques/NPCs Destroyed . | . . . Combat | -11 -10 -10 -------- Run | Yrd Mat Min Hostile Shots Fired 51 | . 30 21 Missed 10 | . 4 6 Hits 41 | . 26 15 Melee 5 | . . 5 Projectile 36 | . 26 10 Critical Strikes 3 | . 3 . Damage Taken 773 | . 383 390 Core 257 | . 55 202 Absorbed by Shields . | . . . Redirected to Shielding 12 | . 8 4 Core Remaining (%) 100 | 100 . . Volleys Fired 34 | . 24 10 Largest 2 | . 2 2 Hottest 130 | . 105 130 Shots Fired 61 | . 42 19 Gun 61 | . 42 19 Cannon . | . . . Launcher . | . . . Special . | . . . Kinetic 16 | . 16 . Thermal 27 | . 8 19 Explosive . | . . . Electromagnetic 18 | . 18 . Robot Hit Streak 7 | . 7 3 Robot Miss Streak 5 | . 2 5 Penetration Max . | . . . Secondary Targets . | . . . Shots Hit Robots 36 | . 29 7 Core Hits 16 | . 12 4 Critical Kills . | . . . Critical Parts Destroyed . | . . . Critical Strikes . | . . . Melee Attacks . | . . . Impact . | . . . Slashing . | . . . Piercing . | . . . Sneak Attacks . | . . . Combat Hostiles . | . . . Follow-up Attacks . | . . . Damage Inflicted 574 | . 420 154 Guns 528 | . 383 145 Cannons . | . . . Explosions 37 | . 37 . Melee . | . . . Ramming 9 | . . 9 Kinetic 125 | . 125 . Thermal 262 | . 117 145 Explosive . | . . . Electromagnetic 178 | . 178 . Impact . | . . . Slashing . | . . . Piercing . | . . . Highest Corruption 5 | . . 5 Average Corruption 4 | . . 4 Corruption Purged . | . . . Corruption Blocked . | . . . Overload Shots . | . . . Overflow Damage . | . . . Projectiles . | . . . Explosions . | . . . Melee . | . . . Knockbacks . | . . . Impact . | . . . Kinetic . | . . . Secondary . | . . . Self-Inflicted Damage 49 | . 45 4 Shots 1 | . 1 . Rammed 1 | . . 1 Targets Rammed 1 | . . 1 Kicked . | . . . Crushed . | . . . Highest Temperature 534 | . 481 534 Average Temperature 215 | . 185 248 Received Heat Transfer 225 | . 225 . Effects 11 | . 2 9 Shutdowns 3 | . 2 1 Interference 3 | . . 3 Short Circuit 1 | . . 1 Damage (major) 1 | . . 1 Damage (core) 3 | . . 3 Siege Activations . | . . . Martial Activations . | . . . Shielding Activations . | . . . Robots Disrupted . | . . . Combat Hostiles . | . . . Robots Corrupted . | . . . Combat Hostiles . | . . . Parts Fried . | . . . Impact Corruptions . | . . . Robots Melted . | . . . Combat Hostiles . | . . . Parts Melted 1 | . 1 . Heat Transferred 568 | . 235 333 Parts Sabotaged . | . . . Parts Stolen . | . . . Parts Stripped . | . . . Power Chain Reactions 1 | . 1 . Alert | -11 -10 -10 ------- Run | Yrd Mat Min Maximum Alert Level . | . . . Low Security (%) 100 | 100 100 100 Level 1 . | . . . Level 2 . | . . . Level 3 . | . . . Level 4 . | . . . Level 5 . | . . . High Security . | . . . Max Security . | . . . Peak Influence 93 | . 93 28 Initial 28 | . . 28 Average 17 | . 26 5 Influence Increases 199 | . 199 . Destroy 0b10 Robot/C 120 | . 120 . Destroy Leader 30 | . 30 . Disable Machine 30 | . 30 . Destroy Structure 4 | . 4 . Lose Combat Pursuer 15 | . 15 . Influence Decreases 199 | . 126 73 Entered New Map 45 | . . 45 Time Decay 148 | . 120 28 Lost Part 6 | . 6 . Squads Dispatched 1 | . 1 . Investigation . | . . . Extermination . | . . . Reinforcement 1 | . 1 . Assault . | . . . Garrison . | . . . Intercept . | . . . Searches Triggered . | . . . Construction Impeded . | . . . Haulers Reinforced . | . . . Active Scanning Responses . | . . . Cargo Convoy Interrupts . | . . . Stealth | -11 -10 -10 --------- Run | Yrd Mat Min Distress Signals . | . . . Communications Jammed . | . . . Distress Signals . | . . . Times Spotted 13 | . 10 3 Peak Tracking Total 3 | . 3 2 Tactical Retreats 1 | . 1 . Traps | -11 -10 -10 ------- Run | Yrd Mat Min Traps Triggered . | . . . Indirectly . | . . . Trap Hack Attempts . | . . . Triggered . | . . . Disarmed . | . . . Reprogrammed . | . . . Reused . | . . . Traps Extracted . | . . . Installed . | . . . Triggered . | . . . Machines | -11 -10 -10 ---------- Run | Yrd Mat Min Machines Disabled 2 | . 2 . Max in Single Turn 2 | . 2 . Machines Repaired . | . . . Machines Dismantled . | . . . Machines Sabotaged . | . . . Overloaded Fab Kills . | . . . Hacking | -11 -10 -10 --------- Run | Yrd Mat Min Machines Accessed 3 | . 3 . Terminals 3 | . 3 . Fabricators . | . . . Repair Stations . | . . . Recycling Units . | . . . Scanalyzers . | . . . Garrison Access . | . . . Total Hacks 5 | . 5 . Successful 1 | . 1 . Failed 4 | . 4 . Catastrophic 1 | . 1 . Database Lockouts . | . . . Manual . | . . . Terminals 5 | . 5 . Fabricators . | . . . Repair Stations . | . . . Recycling Units . | . . . Scanalyzers . | . . . Garrison Access . | . . . Terminal Hacks 1 | . 1 . Alert Level 1 | . 1 . Fabricator Hacks . | . . . Repair Station Hacks . | . . . Recycling Unit Hacks . | . . . Scanalyzer . | . . . Garrison Access Hacks . | . . . Unauthorized Hacks . | . . . Terminals . | . . . Fabricators . | . . . Repair Stations . | . . . Recycling Units . | . . . Scanalyzers . | . . . Garrison Access . | . . . Data Cores Recovered . | . . . Used . | . . . Hacking Detections 3 | . 3 . Full Trace Events . | . . . Feedback Events . | . . . Feedback Blocked . | . . . Robot Schematics Acquired . | . . . Robots Built . | . . . Authchips . | . . . Time . | . . . Total Robot Build Rating . | . . . Part Schematics Acquired . | . . . Parts Built . | . . . Authchips . | . . . Time . | . . . Total Part Build Rating . | . . . Part Studies Acquired . | . . . Parts Repaired . | . . . Time . | . . . Parts Recycled . | . . . Recycled Matter . | . . . Retrieved Matter . | . . . Retrieved Components . | . . . Parts Scanalyzed . | . . . Part Schematics Acquired . | . . . Parts Damaged . | . . . Bothacking | -11 -10 -10 ------------ Run | Yrd Mat Min Used RIF Installer . | . . . Robots Hacked . | . . . Non-combat . | . . . Combat . | . . . Robot Hacks Applied . | . . . Relay Couplers Released . | . . . Fabnet Peak Effective % . | . . . Robots Rewired . | . . . Allies Hacked . | . . . Hacks Repelled . | . . . Allies | -11 -10 -10 -------- Run | Yrd Mat Min Total Allies . | . . . Largest Group . | . . . Highest-Rated Group . | . . . Highest-Rated Ally . | . . . Total Orders . | . . . Ally Attacks . | . . . Total Damage . | . . . Kills . | . . . Allies Corrupted . | . . . Allies Melted . | . . . Intel | -11 -10 -10 ------- Run | Yrd Mat Min Active Infowar (turns) 76 | . 76 . T.N.C. 76 | . 76 . Robot Analysis Total . | . . . Derelict Logs Recovered . | . . . Drone Launches . | . . . Drone Recoveries . | . . . Exploration | -11 -10 -10 ------------- Run | Yrd Mat Min Turns Passed 650 | 58 393 199 Spaces Moved 410 | 44 244 122 Core 15 | 4 . 11 Treads . | . . . Legs 389 | 40 244 105 Wheels 6 | . . 6 Hover . | . . . Flight . | . . . Fastest Speed 50 | 50 120 100 Average Speed 121 | 113 120 126 Slowest Speed 200 | 120 120 200 Overloaded Moves . | . . . Propulsion Burnouts . | . . . Robots Hopped . | . . . Potential Cave-ins . | . . . Cave-ins Triggered . | . . . Exploration Rate (%) 25 | 4 41 31 Regions Visited 2 Branch Regions 1 Pre-discovered Areas . | . . . Known Exits Taken . | . . . Unknown Exits Taken 2 | 1 1 . Scrap Searched . | . . . Spaces Dug . | . . . Terrain Destroyed 3 | . 3 . Melee . | . . . Projectile . | . . . AOE 3 | . 3 . Terrain Rammed . | . . . Walls Destroyed . | . . . Machines Disabled . | . . . Actions | -11 -10 -10 --------- Run | Yrd Mat Min Total 493 | 49 300 144 Wait 13 | . 13 . Move 408 | 43 243 122 Hop . | . . . Pick Up 8 | 1 5 2 Fast Attach 12 | 5 5 2 Attach 1 | . 1 . Detach . | . . . Swap 11 | . 4 7 Drop 6 | . 5 1 Fire 34 | . 24 10 Melee . | . . . Ram . | . . . Kick . | . . . Crush . | . . . Escape Stasis . | . . . Rewire . | . . . Trap . | . . . Miscellaneous . | . . . Route ------- -11/Scrapyard -10/Materials -10/Mines History --------- Turn | Location | Event 6 | -11/Scrapyard | Discovered new exit (range 15) 59 | -11/Scrapyard | Entered Materials 252 | -10/Materials | Discovered new exit (range 14) 316 | -10/Materials | Build established: Mutant 452 | -10/Materials | Entered Mines 453 | -10/Mines | Met a Derelict bent on vengeance 471 | -10/Mines | Received a Rocket Launcher from a helpful Derelict 489 | -10/Mines | Assembled infested the area 600 | -10/Mines | Core integrity fell below 50% 611 | -10/Mines | Core integrity fell below 20% 651 | -10/Mines | Core destroyed Last Messages --------------- 00616_ Particle Gun temporarily disabled. 00622_ Overheating: System interference. 00622_ Rocket Launcher temporarily disabled. 00624_ Acquired 6 matter. 00633_ Acquired Lgt. Deuterium Engine. 00635_ K-01 Serf collects debris. 00636_ Dropped Ion Engine. 00638_ Acquired 77 matter. 00639_ K-01 Serf collects debris. 00642_ Acquired Com. Wheel. 00644_ K-01 Serf collects debris. 00646_ Acquired Com. Wheel. 00646_ R-06 Scavenger collects Terrain Scanner. 00647_ K-01 Serf collects debris. 00649_ R-06 Scavenger collects Lgt. Ion Engine. 00649_ Acquired 66 matter. 00650_ Acquired 22 matter. 00651_ K-01 Serf collects debris. 00651_ Slammed into K-01 Serf. 00651_ Destabilizing: Core damaged (-12). Map ----- +----------------------------------------------------+ | ## #######?????#####???????# #????? | | ?############?????????????????????### #????? | | ??????????????????????????????????# #????? | | ??????????????????????????????????# ###????? | | ?????????????????####?????????????# #??????? | | ????????????????## ##???????????# #??????? | | ????????????????# ##??????????# #??????? | | ????????????????# ############ #??????? | | ?????????????????# #??????? | | ?????????????????#### #??????? | | ????????????????????## ###########??????? | | ?????????????????????### #???????????????? | | ???????????????????????## ##??????????????? | | ????????????????????????## ##?????????????? | | ?????????????????????????# ##????????????? | | ?????????????????????????# #????????????? | | ????????????????????######t #????????????? | | ????????????##??????# ##????????????? | | ???????????## ???## # ##?????????????? | | ???????????# ### r #??????????????? | | ??????????# # * #??????????????? | | ??????????# %t #??????????????? | | ???????????# #! #??????????????? | | ????????????## # # #! r #??????????????? | | ?????????????## # #!#??????????????? | | ???????????????# ## ###@ ##??????????????? | | ???????????????# ??##???#k##???????????????? | | ???????????????#????????#u#????????????????? | | ????????????????????????# #????????????????? | | ????????????????????????#%#????????????????? | | ????????????????????????# #????????????????? | | ????????????????????????# #????????????????? | | ????????????????????????# #????????????????? | | ????????????????????????# #????????????????? | | ????????????????????????? ?????????????????? | | ????????????????????????? ?????????????????? | | ????????????????????????? ?????????????????? | | ????????????????????????? ?????????????????? | | ????????????????????????? ?????????????????? | | ????????????????????????? ?????????????????? | | ?????????????????????????#?????????????????? | | ???????????????????????????????????????????? | | ???????????????????????????????????????????? | | ???????????????????????????????????????????? | | ???????????????????????????????????????????? | | ???????????????????????????????????????????? | | ???????????????????????????????????????????? | | ???????????????????????????????????????????? | | ???????????????????????????????????????????? | | ???????????????????????????????????????????? | +----------------------------------------------------+ Best States ------------- Heat Dissipation 25 Energy Generation 14 Energy Capacity 500 Matter Stores 278 Matter Capacity 300 Sight Range 16 Terrain Scan Density 10 Power Shielding 33 Evasion (%) 55 Targeting Accuracy 6 Item Schematics ----------------- None Robot Schematics ------------------ None Fabricated ------------ Nothing Repaired ---------- Nothing Studied --------- None Alien Tech Used ----------------- None Achievements -------------- Storm Trooper Well Done Challenges ------------ None Game ------ Seed AntisysPowerShielding Manual? 0 Play Time 00:10:50 Cumulative 0.8 hours Start 2025.11.17 @ 19:53:43 End 2025.11.17 @ 20:01:49 Sessions 1 Manual Loads 0 Difficulty Rogue Special Mode None Game No. 4 Rogue 4 Adventurer 0 Explorer 0 Win Type - Total 0 Types 0/0/0/0/0/0/0/0/0/0 Lore% 0 Gallery% 3 Achievement% 2 Wizard Run 0 Options --------- Layout 1 ASCII 0 Keyboard 0 Movement Mouse Keybinds 0 Fullscreen 1 Font 24/Terminus Map View 50x35 Zoom Use 0% Tactical HUD 1 Map Filters NONE Filters NONE Steam 0 RUN: 8b15a7b8-38ec-4bbc-8171-c1123349039c